bitfinex-derivatives/quotes_SOLF0:USTF0_20260105
["timestamp","ask_amount","ask_price","bid_price","bid_amount"]
[1767631771971,5.78840702,135.11,135.06,7.06455209]
[1767631772273,1.87395218,135.11,135.03,0.39935209]
[1767631772680,1.87395218,135.12,135.04,7.06555209]
[1767631773578,8.53645218,135.12,135.04,7.06555209]
[1767631774475,1.87395218,135.1,135.02,7.06625209]
[1767631775470,1.87395218,135.1,135.03,6.6667]
[1767631776676,103.6183,135.15,135.04,0.39935209]
[1767631776879,1.87395218,135.13,135.05,0.39935209]
[1767631777272,87.46,135.15,135.05,0.39935209]
[1767631777476,1.87395218,135.13,135.05,0.39935209]
[1767631778788,1.87395218,135.13,135.06,7.06455209]
[1767631780890,1.87395218,135.13,135.07,7.06415209]
[1767631781188,1.87395218,135.17,135.08,0.39935209]
[1767631781387,5.78443991,135.16,135.08,0.39935209]
[1767631781584,1.87395218,135.17,135.08,0.39935209]
[1767631781885,1.87395218,135.17,135.1,7.06265209]
[1767631782484,1.87395218,135.17,135.11,7.06215209]
[1767631783278,1.87395218,135.17,135.12,7.06155209]
[1767631783684,89.33395218,135.19,135.12,0.39935209]
[1767631783880,1.87395218,135.2,135.14,6.6612]
[1767631784091,1.87395218,135.2,135.14,7.06055209]
[1767631786287,1.87395218,135.2,135.16,0.39935209]
[1767631787088,1.87395218,135.21,135.16,0.39935209]
[1767631787388,1.87395218,135.22,135.16,7.05955209]
[1767631788090,89.31395218,135.23,135.17,7.05905209]
[1767631788292,89.31395218,135.23,135.17,0.39935209]
[1767631788486,87.44,135.23,135.17,0.39935209]
[1767631789693,87.44,135.23,135.18,6.6592]
[1767631791593,87.44,135.23,135.19,6.6589]
[1767631791795,2.92062123,135.25,135.19,6.6589]
[1767631792496,87.42,135.26,135.2,6.6584]
[1767631794683,2.92062123,135.3,135.2,0.4169488]
[1767631794895,87.4,135.29,135.2,0.4169488]
[1767631796291,87.4,135.29,135.21,6.6576]
[1767631797185,94.054,135.29,135.21,6.6576]
[1767631797385,2.92062123,135.26,135.18,0.4169488]
[1767631798599,9.57612123,135.26,135.18,7.0761488]
[1767631798998,2.92062123,135.24,135.15,0.4169488]
[1767631799204,2.92062123,135.24,135.16,6.6599]
[1767631799698,2.92062123,135.24,135.17,6.6598]
[1767631800601,2.92062123,135.24,135.18,6.6593]
[1767631800991,2.92062123,135.28,135.19,0.40503226]
[1767631801191,87.4,135.29,135.19,0.40503226]
[1767631801500,87.4,135.29,135.23,6.6569]
[1767631801898,87.4,135.29,135.22,0.40503226]
[1767631802092,9.57312123,135.33,135.25,6.6559]
[1767631802299,87.38,135.33,135.23,0.40503226]
[1767631802600,2.92062123,135.32,135.23,0.40503226]
[1767631803193,2.92062123,135.3,135.21,0.40503226]
[1767631803704,6.654,135.29,135.21,7.06283226]
[1767631804089,90.30062123,135.33,135.22,0.40503226]
[1767631804292,6.6531,135.31,135.23,6.6568]
[1767631804896,9.57372123,135.31,135.23,6.6568]
[1767631805493,9.57372123,135.31,135.22,0.40503226]
[1767631806390,2.92062123,135.31,135.22,0.40503226]
[1767631806593,2.92062123,135.29,135.19,87.78503226]
[1767631807598,6.6545,135.28,135.2,7.06333226]
[1767631809803,106.42842123,135.29,135.2,0.40503226]
[1767631810006,2.92062123,135.27,135.2,0.40503226]
[1767631810307,2.92062123,135.27,135.18,6.6591]
[1767631810607,2.92062123,135.27,135.18,7.06413226]
[1767631811205,6.656,135.25,135.18,0.40503226]
[1767631811407,2.92062123,135.25,135.17,0.40503226]
[1767631811708,2.92062123,135.27,135.17,0.40503226]
[1767631811902,9.57602123,135.27,135.19,7.06393226]
[1767631812304,2.92062123,135.29,135.2,0.40503226]
[1767631812904,6.6545,135.28,135.2,7.06343226]
[1767631813102,6.6545,135.28,135.21,0.40503226]
[1767631814707,6.6551,135.27,135.17,0.40503226]
[1767631814905,2.92062123,135.27,135.17,0.40503226]
[1767631817609,6.656,135.25,135.17,7.06493226]
[1767631820619,6.656,135.25,135.18,6.6592]
[1767631821010,6.656,135.25,135.18,7.06423226]
[1767631825013,9.57602123,135.27,135.18,7.06423226]
[1767631825215,5.75494509,135.26,135.18,7.06423226]
[1767631825415,2.92062123,135.27,135.18,7.06423226]
[1767631825615,5.76090473,135.26,135.18,7.06423226]
[1767631825919,5.76090473,135.25,135.18,7.06423226]
[1767631826121,6.6559,135.26,135.18,7.06423226]
[1767631826309,12.41850951,135.25,135.18,7.06423226]
[1767631826618,6.6561,135.25,135.18,7.06423226]
[1767631827309,5.7666175,135.24,135.18,7.06423226]
[1767631827609,6.6561,135.25,135.18,7.06423226]
[1767631827809,5.76689734,135.24,135.18,7.06423226]
[1767631828013,6.6561,135.25,135.18,7.06423226]
[1767631828309,5.76642602,135.24,135.18,7.06423226]
[1767631828506,6.6561,135.25,135.18,7.06423226]
[1767631828710,5.77021864,135.24,135.18,7.06423226]
[1767631828911,6.6561,135.25,135.18,7.06423226]
[1767631829112,5.76979257,135.24,135.18,7.06423226]
[1767631829315,6.6561,135.25,135.18,7.06423226]
[1767631829516,5.77143179,135.24,135.18,7.06423226]
[1767631829717,6.6561,135.25,135.18,7.06423226]
[1767631829920,5.77145761,135.24,135.18,7.06423226]
[1767631830222,6.6561,135.25,135.18,7.06423226]
[1767631830413,5.77082371,135.24,135.18,7.06423226]
[1767631830711,6.6561,135.25,135.18,7.06423226]
[1767631830912,5.77008506,135.24,135.18,7.06423226]
[1767631831213,6.6561,135.25,135.18,7.06423226]
[1767631831414,5.77674089,135.24,135.18,7.06423226]
[1767631831725,6.6561,135.25,135.18,7.06423226]
[1767631832916,2.92062123,135.27,135.18,0.40503226]
[1767631833122,6.6566,135.24,135.17,6.6599]
[1767631833321,6.6566,135.24,135.17,7.09246632]
[1767631838029,6.657,135.23,135.17,0.43256632]
[1767631840131,6.6565,135.24,135.17,7.09226632]
[1767631842944,90.30062123,135.25,135.18,7.09196632]
[1767631842945,96.95662123,135.25,135.18,7.09196632]
[1767631843244,2.92062123,135.29,135.19,0.43256632]
[1767631843434,5.64589206,135.28,135.19,0.43256632]
[1767631843633,87.38,135.3,135.22,0.43256632]
[1767631844035,6.652,135.34,135.26,0.43256632]
[1767631844243,5.64778793,135.33,135.26,0.43256632]
[1767631844429,94.032,135.34,135.26,0.43256632]
[1767631844634,12.29696628,135.33,135.26,0.43256632]
[1767631844936,87.38,135.34,135.26,0.43256632]
[1767631845136,5.64495448,135.33,135.26,0.43256632]
[1767631845438,87.38,135.34,135.26,0.43256632]
[1767631845737,90.30062123,135.36,135.26,0.43256632]
[1767631845938,6.6516,135.34,135.26,0.43256632]
[1767631847537,6.6516,135.34,135.26,7.08786632]
[1767631848046,90.30062123,135.36,135.27,0.43256632]
[1767631848047,94.0308,135.36,135.27,0.43256632]
[1767631848551,95.89651417,135.36,135.27,8.95318049]
[1767631849550,6.6511,135.35,135.27,8.95318049]
[1767631850143,6.6511,135.35,135.27,7.08746632]
[1767631850446,87.38,135.36,135.29,0.43256632]
[1767631850839,87.38,135.36,135.31,0.43256632]
[1767631851045,1.86571417,135.4,135.31,0.43256632]
[1767631851046,1.86571417,135.38,135.31,0.43256632]
[1767631851348,87.34,135.4,135.32,0.43256632]
[1767631851547,41.50418455,135.41,135.33,0.43256632]
[1767631851744,5.63519095,135.4,135.33,0.43256632]
[1767631851941,41.50418455,135.41,135.33,0.43256632]
[1767631852143,39.63847038,135.41,135.33,0.43256632]
[1767631853540,39.63847038,135.41,135.33,7.08426632]
[1767631853744,39.63847038,135.41,135.34,0.42136062]
[1767631854346,39.63847038,135.41,135.35,0.42136062]
[1767631854541,1.86571417,135.44,135.35,0.42136062]
[1767631855046,8.51241417,135.44,135.36,7.07176062]
[1767631855447,6.6473,135.43,135.36,0.42136062]
[1767631855646,1.86571417,135.42,135.36,0.42136062]
[1767631858348,1.86571417,135.44,135.36,0.42136062]
[1767631859757,8.51251417,135.44,135.36,0.42136062]
[1767631860143,8.51251417,135.44,135.36,7.07166062]
[1767631860548,89.20571417,135.45,135.37,0.42136062]
[1767631861456,1.86571417,135.43,135.36,6.6503]
[1767631861853,1.86571417,135.43,135.36,7.09514661]
[1767631862057,87.34,135.45,135.37,0.44484661]
[1767631862451,1.86571417,135.44,135.37,0.44484661]
[1767631862954,1.86571417,135.46,135.39,0.44484661]
[1767631863153,87.28,135.49,135.39,0.44484661]
[1767631863550,1.86571417,135.48,135.4,7.09334661]
[1767631867061,1.86571417,135.48,135.41,0.44484661]
[1767631868456,1.86571417,135.48,135.42,0.44484661]
[1767631870355,1.86571417,135.48,135.42,7.09244661]
[1767631870864,1.86571417,135.48,135.42,0.44484661]
[1767631871256,1.86571417,135.46,135.4,7.09304661]
[1767631871457,1.86571417,135.46,135.4,0.44484661]
[1767631873864,1.86571417,135.44,135.38,0.44484661]
[1767631874570,8.51231417,135.44,135.34,0.44484661]
[1767631874760,1.86571417,135.44,135.34,0.44484661]
[1767631874956,1.86571417,135.44,135.35,0.44484661]
[1767631875166,1.86571417,135.44,135.37,7.09484661]
[1767631875366,103.3648,135.48,135.37,7.09484661]
[1767631875564,1.86571417,135.44,135.37,7.09484661]
[1767631875764,1.86571417,135.44,135.38,6.6494]
[1767631876263,1.86571417,135.44,135.38,7.09424661]
[1767631876457,1.86571417,135.46,135.39,0.44484661]
[1767631877669,1.86571417,135.46,135.41,6.6481]
[1767631877864,87.24,135.49,135.41,0.44484661]
[1767631878062,89.10571417,135.49,135.41,0.44484661]
[1767631878266,89.10571417,135.49,135.42,6.6475]
[1767631878971,89.10571417,135.49,135.41,0.44484661]
[1767631879166,1.86571417,135.47,135.41,0.44484661]
[1767631879569,1.86571417,135.47,135.43,6.6471]
[1767631879777,89.10571417,135.49,135.42,0.44484661]
[1767631880274,89.10571417,135.49,135.42,7.09194661]
[1767631880471,95.75001417,135.49,135.42,7.09194661]
[1767631880772,95.75001417,135.49,135.42,6.6471]
[1767631880969,95.75001417,135.49,135.42,7.09194661]
[1767631881876,95.75001417,135.49,135.43,6.6471]
[1767631882465,89.10571417,135.49,135.43,6.6471]
[1767631882665,89.10571417,135.49,135.44,0.44484661]
[1767631882977,87.24,135.49,135.44,0.44484661]
[1767631883176,89.10571417,135.49,135.44,0.44484661]
[1767631884074,103.2747,135.6,135.45,0.44484661]
[1767631884274,1.86571417,135.56,135.48,0.44484661]
[1767631884678,1.86571417,135.54,135.47,6.6447]
[1767631884872,1.86571417,135.52,135.45,0.44484661]
[1767631885072,1.86571417,135.52,135.45,7.09084661]
[1767631885268,6.6418,135.54,135.45,0.44484661]
[1767631885478,1.86571417,135.52,135.45,0.44484661]
[1767631885676,6.6418,135.54,135.45,0.44484661]
[1767631885873,1.86571417,135.52,135.45,0.44484661]
[1767631886581,1.86571417,135.52,135.46,6.6455]
[1767631886972,1.86571417,135.52,135.45,0.44484661]
[1767631887682,1.86571417,135.52,135.45,7.09084661]
[1767631887873,6.6421,135.54,135.45,7.09084661]
[1767631888073,1.86571417,135.52,135.45,7.09084661]
[1767631888275,1.86571417,135.52,135.45,0.44484661]
[1767631888472,1.86571417,135.48,135.39,0.44484661]
[1767631888778,1.86571417,135.48,135.4,0.44484661]
[1767631889686,1.86571417,135.48,135.41,7.09254661]
[1767631889874,1.86571417,135.48,135.42,0.44484661]
[1767631890080,1.86571417,135.48,135.42,7.09234661]
[1767631890778,1.86571417,135.48,135.42,0.44484661]
[1767631893089,1.86571417,135.46,135.39,7.06219023]
[1767631895374,1.86571417,135.46,135.4,6.6484]
[1767631896886,1.86571417,135.46,135.41,6.6479]
[1767631897077,1.86571417,135.46,135.42,0.41349023]
[1767631897282,1.86571417,135.48,135.42,0.41349023]
[1767631898684,1.86571417,135.48,135.42,7.06079023]
[1767631899887,1.86571417,135.48,135.43,6.6469]
[1767631900087,1.86571417,135.49,135.43,7.06039023]
[1767631900286,93.8629,135.52,135.44,0.41349023]
[1767631900287,87.22,135.52,135.44,0.41349023]
[1767631900487,6.6423,135.53,135.45,6.6459]
[1767631900687,8.50801417,135.53,135.45,7.05939023]
[1767631902189,1.86571417,135.53,135.46,6.6454]
[1767631902693,87.22,135.55,135.47,0.41349023]
[1767631902694,89.08571417,135.55,135.47,0.41349023]
[1767631902883,89.08571417,135.55,135.48,6.6445]
[1767631903686,89.08571417,135.55,135.49,6.6441]
[1767631904294,87.22,135.55,135.49,7.05759023]
[1767631906693,87.22,135.55,135.49,6.6441]
[1767631908597,87.22,135.55,135.47,0.41349023]
[1767631908898,1.86571417,135.54,135.47,0.41349023]
[1767631909096,1.86571417,135.54,135.46,6.6452]
[1767631909297,1.86571417,135.52,135.44,0.41349023]
[1767631910586,6.6427,135.52,135.45,6.6461]
[1767631911994,6.6427,135.52,135.44,7.06009023]
[1767631912394,6.6427,135.52,135.44,0.41349023]
[1767631912594,9.55026655,135.54,135.45,6.6461]
[1767631912798,2.90806655,135.54,135.45,6.6461]
[1767631913596,6.6423,135.53,135.45,7.07081541]
[1767631913796,6.6423,135.53,135.46,6.6456]
[1767631914496,6.6427,135.52,135.45,0.42471541]
[1767631916196,6.6433,135.51,135.43,6.6471]
[1767631916396,2.90806655,135.52,135.43,6.6471]
[1767631916695,2.90806655,135.52,135.42,0.42471541]
[1767631916897,2.90806655,135.5,135.42,0.42471541]
[1767631917098,90.10806655,135.5,135.42,0.42471541]
[1767631917303,2.90806655,135.54,135.44,0.42471541]
[1767631918200,6.6429,135.52,135.44,7.07081541]
[1767631918898,6.6429,135.52,135.45,6.6461]
[1767631920106,6.6429,135.52,135.44,0.42471541]
[1767631920302,2.90806655,135.52,135.42,0.42471541]
[1767631920503,2.90806655,135.5,135.42,0.42471541]
[1767631921005,9.55176655,135.5,135.42,0.42471541]
[1767631921206,2.90806655,135.5,135.42,0.42471541]
[1767631922104,6.6442,135.49,135.42,0.42471541]
[1767631923294,6.6442,135.49,135.41,6.6476]
[1767631923805,6.6442,135.49,135.4,0.41711412]
[1767631924004,6.6442,135.49,135.42,6.6476]
[1767631924401,6.6434,135.51,135.43,0.41711412]
[1767631924902,9.55076655,135.52,135.43,0.41711412]
[1767631925304,6.6427,135.52,135.43,0.41711412]
[1767631925603,6.6427,135.52,135.44,6.6466]
[1767631927298,6.6433,135.51,135.44,6.6466]
[1767631928503,6.6442,135.49,135.42,6.6472]
[1767631928708,2.90806655,135.5,135.42,6.6472]
[1767631929113,6.6443,135.49,135.41,7.06521412]
[1767631929412,2.90806655,135.5,135.41,0.41711412]
[1767631929600,9.55176655,135.5,135.42,7.06471412]
[1767631929797,9.55176655,135.5,135.42,0.41711412]
[1767631930204,2.90806655,135.5,135.42,0.41711412]
[1767631930513,2.90806655,135.5,135.43,6.647]
[1767631931012,6.6434,135.51,135.43,6.647]
[1767631931210,2.90806655,135.54,135.44,7.06371412]
[1767631931416,5.38470936,135.53,135.44,7.06371412]
[1767631931620,2.90806655,135.54,135.44,7.06371412]
[1767631931913,6.6428,135.52,135.45,6.6461]
[1767631934014,6.6421,135.54,135.46,7.06261412]
[1767631934316,87.22,135.55,135.47,0.41711412]
[1767631934614,112.60298004,135.59,135.47,0.41711412]
[1767631934816,5.38660263,135.58,135.5,0.41711412]
[1767631935007,87.22,135.59,135.5,0.41711412]
[1767631937309,87.22,135.59,135.53,6.6422]
[1767631937613,87.22,135.59,135.53,7.05931412]
[1767631939720,87.22,135.59,135.53,0.41711412]
[1767631940417,87.22,135.59,135.5,0.41711412]
[1767631941707,6.6403,135.57,135.5,0.41711412]
[1767631942619,93.8597,135.59,135.5,7.06061412]
[1767631942916,87.22,135.59,135.5,7.06061412]
[1767631943117,2.90806655,135.58,135.48,6.6442]
[1767631943526,2.90806655,135.58,135.47,0.41711412]
[1767631943724,2.90806655,135.58,135.44,106.29656655]
[1767631943725,2.90806655,135.56,135.46,6.6452]
[1767631945227,2.90806655,135.54,135.43,87.61711412]
[1767631945420,2.90806655,135.52,135.38,106.34296655]
[1767631945723,2.90806655,135.5,135.4,0.41711412]
[1767631946521,6.6444,135.49,135.41,6.6479]
[1767631946718,6.6444,135.49,135.4,0.41711412]
[1767631947026,93.8244,135.49,135.4,0.41711412]
[1767631948725,93.8244,135.49,135.4,7.06561412]
[1767631949119,87.18,135.49,135.4,0.41711412]
[1767631949421,90.10806655,135.5,135.39,34.89217652]
[1767631949724,9.55296655,135.48,135.39,41.54107652]
[1767631950717,9.55206655,135.5,135.4,0.41711412]
[1767631950915,96.75206655,135.5,135.4,0.41711412]
[1767631951526,96.75206655,135.5,135.42,6.6475]
[1767631954233,87.2,135.5,135.42,6.6475]
[1767631954727,87.2,135.5,135.42,7.08950101]
[1767631954919,87.2,135.5,135.43,7.08900101]
[1767631962328,93.8438,135.5,135.43,7.08900101]
[1767631962534,87.2,135.5,135.43,7.08900101]
[1767631963734,87.2,135.5,135.4,0.44200101]
[1767631963929,2.90806655,135.48,135.4,0.44200101]
[1767631964332,9.55286655,135.48,135.41,6.648]
[1767631964834,9.55286655,135.48,135.39,34.89217652]
[1767631965038,6.6452,135.47,135.4,6.6485]
[1767631965335,87.2,135.5,135.37,0.44200101]
[1767631965336,2.90806655,135.46,135.37,0.44200101]
[1767631965537,87.22,135.45,135.38,6.6492]
[1767631966334,2.90806655,135.44,135.38,6.6492]
[1767631968229,2.90806655,135.44,135.37,0.44200101]
[1767631968435,93.8662,135.45,135.32,0.44200101]
[1767631968436,2.90806655,135.42,135.32,0.44200101]
[1767631968737,2.90806655,135.4,135.32,7.09410101]
[1767631968939,2.90806655,135.38,135.29,0.44200101]
[1767631969537,2.90806655,135.38,135.29,7.09570101]
[1767631970540,1.86569423,135.36,135.29,7.09570101]
[1767631971141,1.86569423,135.37,135.3,0.44200101]
[1767631972050,1.86569423,135.37,135.3,7.09510101]
[1767631972250,1.86569423,135.37,135.3,0.44200101]
[1767631972946,1.86569423,135.37,135.32,7.09146851]
[1767631973151,1.86569423,135.39,135.32,7.09146851]
[1767631973351,1.86569423,135.41,135.33,0.43906851]
[1767631973554,1.86569423,135.41,135.34,0.43906851]
[1767631974449,1.86569423,135.43,135.36,7.08946851]
[1767631974843,89.10569423,135.45,135.36,0.43906851]
[1767631975050,89.10569423,135.45,135.37,7.08896851]
[1767631976056,1.86569423,135.41,135.35,6.6506]
[1767631976355,87.24,135.45,135.35,6.6506]
[1767631976659,87.24,135.45,135.35,7.08966851]
[1767631977056,6.6467,135.44,135.35,7.08966851]
[1767631977256,87.24,135.45,135.36,7.08946851]
[1767631977760,93.8863,135.45,135.36,7.08946851]
[1767631982458,6.6456,135.47,135.37,0.44343317]
[1767631983061,6.6457,135.46,135.38,7.09293317]
[1767631985668,98.48180299,135.48,135.39,6.649]
[1767631985867,91.83670299,135.48,135.39,6.649]
[1767631986070,91.83670299,135.48,135.38,0.44343317]
[1767631987364,6.6462,135.45,135.38,7.09293317]
[1767631987570,91.83670299,135.48,135.38,7.09293317]
[1767631987770,91.83670299,135.48,135.38,0.44343317]
[1767631987973,87.26,135.48,135.4,7.09193317]
[1767631990384,87.26,135.48,135.41,6.648]
[1767631990678,93.9047,135.48,135.4,0.44343317]
[1767631990866,6.6447,135.48,135.4,0.44343317]
[1767631991071,6.6447,135.48,135.4,7.09203317]
[1767631991986,4.57670299,135.48,135.38,6.6492]
[1767631992166,5.35936171,135.47,135.37,0.44343317]
[1767631992371,103.3699,135.47,135.34,0.44343317]
[1767631993474,107.96500299,135.45,135.34,7.09463317]
[1767631993777,92.59765379,135.44,135.34,0.44343317]
[1767631993979,87.24,135.44,135.34,7.09493317]
[1767631994479,5.35685354,135.43,135.34,0.44343317]
[1767631994780,6.6484,135.41,135.34,0.44343317]
[1767631995083,6.6486,135.4,135.33,6.6519]
[1767631996082,190.6353,135.44,135.33,6.6519]
[1767631996379,5.35371007,135.43,135.33,6.6519]
[1767631996581,8.51335781,135.4,135.33,6.6519]
[1767631999085,1.86475781,135.4,135.33,7.09533317]
[1767631999278,6.6479,135.42,135.35,0.44343317]
[1767631999578,1.86475781,135.45,135.37,0.44343317]
[1767631999780,1.86475781,135.45,135.39,6.649]
[1767631999980,87.26,135.47,135.39,7.09243317]
[1767632000176,87.26,135.47,135.4,0.44343317]
[1767632000677,1.86475781,135.46,135.4,0.44343317]
[1767632001484,1.86475781,135.46,135.37,0.44343317]
[1767632002583,93.9052,135.47,135.39,6.649]
[1767632002784,93.9052,135.47,135.39,7.09243317]
[1767632004790,87.26,135.47,135.4,6.6485]
[1767632004991,87.26,135.47,135.39,0.44343317]
[1767632005284,414.50282543,135.56,135.41,0.44343317]
[1767632005285,4.57399498,135.53,135.41,0.44343317]
[1767632005481,87.26,135.53,135.43,0.44343317]
[1767632006387,6.6428,135.52,135.44,6.6463]
[1767632006783,6.6428,135.52,135.43,0.44343317]
[1767632007090,87.26,135.53,135.43,0.44343317]
[1767632008587,6.6433,135.51,135.43,7.09043317]
[1767632009593,6.6438,135.5,135.41,7.09113317]
[1767632010489,6.6438,135.5,135.42,7.09093317]
[1767632010789,6.6431,135.52,135.42,0.44343317]
[1767632011586,6.6433,135.51,135.42,0.44343317]
[1767632012909,6.6423,135.53,135.44,7.07695136]
[1767632013101,87.24,135.52,135.44,7.07695136]
[1767632013698,93.8827,135.52,135.44,7.07695136]
[1767632014698,6.6432,135.51,135.44,7.07695136]
[1767632014908,87.24,135.52,135.42,6.6473]
[1767632015196,87.24,135.52,135.42,7.07785136]
[1767632015393,6.6439,135.5,135.42,0.43055136]
[1767632015600,87.24,135.52,135.42,0.43055136]
[1767632015601,87.24,135.52,135.43,6.6471]
[1767632015798,87.24,135.52,135.43,0.43055136]
[1767632016602,93.8831,135.52,135.44,6.6465]
[1767632017499,87.24,135.52,135.45,6.6461]
[1767632018898,87.24,135.52,135.45,7.07665136]
[1767632021808,93.8827,135.52,135.45,7.07665136]
[1767632022007,87.24,135.52,135.46,6.6456]
[1767632023007,87.24,135.52,135.47,6.6451]
[1767632023703,87.24,135.52,135.46,0.43055136]
[1767632024602,87.24,135.52,135.46,7.07615136]
[1767632024806,6.6422,135.53,135.46,7.07615136]
[1767632025105,6.6422,135.53,135.46,6.6456]
[1767632027314,89.08095566,135.54,135.45,0.43055136]
[1767632027507,1.86095566,135.57,135.48,0.43055136]
[1767632027812,1.86095566,135.57,135.51,6.6431]
[1767632028014,87.2,135.58,135.51,6.6431]
[1767632028607,1.86095566,135.57,135.5,0.43055136]
[1767632029404,87.2,135.58,135.5,0.43055136]
[1767632029711,8.50125566,135.57,135.5,7.07425136]
[1767632030098,8.50125566,135.57,135.5,6.6437]
[1767632030609,6.6403,135.57,135.5,6.6437]
[1767632031313,90.10637883,135.58,135.51,6.6431]
[1767632031509,87.2,135.58,135.51,6.6431]
[1767632032105,93.8398,135.58,135.5,0.43055136]
[1767632033311,6.6403,135.57,135.47,0.41721393]
[1767632034712,6.6403,135.57,135.49,6.644]
[1767632035105,6.6403,135.57,135.47,0.41721393]
[1767632035610,6.6408,135.56,135.48,0.41721393]
[1767632035813,90.10637883,135.58,135.48,0.41721393]
[1767632036018,2.90637883,135.56,135.48,0.41721393]
[1767632036712,6.6413,135.55,135.48,7.06181393]
[1767632038319,87.2,135.58,135.5,0.41721393]
[1767632039612,93.8399,135.58,135.5,7.06041393]
[1767632039920,87.2,135.58,135.5,0.41721393]
[1767632040310,87.2,135.58,135.52,6.6427]
[1767632040515,87.2,135.58,135.52,0.41721393]
[1767632041315,96.72527883,135.6,135.52,0.41721393]
[1767632041521,96.72527883,135.6,135.52,7.05981393]
[1767632041924,96.72527883,135.6,135.53,6.6422]
[1767632044621,6.6395,135.59,135.51,6.6428]
[1767632044821,6.6395,135.59,135.51,7.06159215]
[1767632045522,6.6398,135.58,135.51,0.41879215]
[1767632045721,90.08637883,135.6,135.48,0.41879215]
[1767632046025,2.90637883,135.58,135.48,0.41879215]
[1767632046414,2.90637883,135.58,135.49,0.41879215]
[1767632047721,2.90637883,135.56,135.46,0.41879215]
[1767632048120,6.6412,135.55,135.48,6.6446]
[1767632050527,2.90637883,135.56,135.46,0.41879215]
[1767632050732,5.38405085,135.55,135.46,0.41879215]
[1767632050934,2.90637883,135.56,135.46,0.41879215]
[1767632051730,6.6422,135.53,135.46,7.06439215]
[1767632051929,87.18,135.55,135.46,7.06439215]
[1767632052320,93.8217,135.55,135.47,6.6451]
[1767632052530,87.18,135.55,135.47,6.6451]
[1767632053535,6.6418,135.54,135.46,0.41879215]
[1767632053934,2.90637883,135.54,135.46,0.41879215]
[1767632054435,2.90637883,135.54,135.45,6.6457]
[1767632055536,6.6428,135.52,135.45,6.6457]
[1767632056629,6.6428,135.52,135.45,7.06449215]
[1767632056836,9.54857883,135.54,135.45,7.06449215]
[1767632058140,6.6422,135.53,135.45,7.06449215]
[1767632059136,6.6428,135.52,135.45,0.41879215]
[1767632060737,6.6432,135.51,135.45,0.41879215]
[1767632062443,2.90637883,135.52,135.41,0.41879215]
[1767632062639,2.90637883,135.5,135.41,0.41879215]
[1767632063648,9.55007883,135.5,135.42,7.06629215]
[1767632065538,2.90637883,135.5,135.42,0.41879215]
[1767632065850,2.90637883,135.48,135.4,0.41879215]
[1767632066649,87.2,135.51,135.41,0.41879215]
[1767632066947,90.10637883,135.51,135.41,0.41879215]
[1767632067347,5.37823036,135.5,135.41,0.41879215]
[1767632067645,9.55057883,135.49,135.42,6.6476]
[1767632069549,9.55057883,135.49,135.39,0.41879215]
[1767632070653,9.55057883,135.49,135.41,6.6481]
[1767632070855,6.6447,135.48,135.41,6.6481]
[1767632072451,6.6451,135.47,135.39,6.6487]
[1767632072657,2.90637883,135.47,135.38,0.42992458]
[1767632073759,6.6461,135.45,135.38,0.42992458]
[1767632073955,2.90637883,135.47,135.38,0.42992458]
[1767632074345,6.6467,135.44,135.36,7.08032458]
[1767632076154,6.6467,135.44,135.35,87.2]
[1767632076155,6.6461,135.45,135.38,0.42992458]
[1767632076350,103.3569,135.49,135.38,0.42992458]
[1767632076351,87.22,135.46,135.38,0.42992458]
[1767632077559,93.8657,135.46,135.38,7.07942458]
[1767632079648,93.8657,135.46,135.39,7.07892458]
[1767632080354,93.8657,135.46,135.39,0.42992458]
[1767632081954,6.6464,135.45,135.39,0.42992458]
[1767632083057,90.12637883,135.46,135.37,0.42992458]
[1767632083260,90.12637883,135.46,135.35,87.62992458]
[1767632083562,90.12637883,135.46,135.36,0.42992458]
[1767632083757,6.6466,135.44,135.37,6.6501]
[1767632083955,90.12637883,135.46,135.37,7.08002458]
[1767632085561,6.6461,135.45,135.37,7.08002458]
[1767632087955,2.90637883,135.42,135.31,0.42992458]
[1767632088155,87.24,135.41,135.31,0.42992458]
[1767632088459,2.90637883,135.4,135.31,7.08282458]
[1767632088763,2.90637883,135.4,135.31,0.42992458]
[1767632089258,106.26307883,135.49,135.37,0.42992458]
[1767632089460,2.90637883,135.52,135.4,0.42992458]
[1767632089762,87.24,135.53,135.4,0.42992458]
[1767632090558,6.6435,135.51,135.42,7.07732458]
[1767632092658,8.50504488,135.51,135.42,8.93886946]
[1767632095261,95.74404488,135.53,135.44,2.27335814]
[1767632096663,95.74404488,135.53,135.44,8.91975814]